fUST/lending_fUST_20250626
["ID","MTS","AMOUNT","RATE_DAILY","PERIOD"]
[367833315,1750939855427,-460.0,0.00018904,2]
[367833316,1750939855440,-471.22,0.00018904,2]
[367833317,1750939855452,-517.13,0.00018904,2]
[367833318,1750939855463,-1623.0,0.00018904,2]
[367833319,1750939855473,-460.0,0.00018904,2]
[367833320,1750939855484,-1190.2,0.00018904,2]
[367833321,1750939855495,-2144.69,0.00018904,2]
[367833322,1750939855507,-782.22,0.00018904,2]
[367833323,1750939855521,-460.0,0.00018904,2]
[367833324,1750939855533,-460.0,0.00018904,2]
[367833325,1750939855543,-460.0,0.00018904,2]
[367833326,1750939855554,-253.69260426,0.00018904,2]
[367833327,1750939855565,-490.8,0.00018904,2]
[367833328,1750939855579,-460.0,0.00018904,2]
[367833329,1750939855591,-460.0,0.00018904,2]
[367833330,1750939855602,-153.0,0.00018904,2]
[367833331,1750939855612,-504.53964016,0.00018933,2]
[367833332,1750939855622,-298.58513118,0.00018969,2]
[367833333,1750939855634,-1500.0,0.00018969,2]
[367833334,1750939855644,-1500.0,0.00018969,2]
[367833335,1750939855655,-2550.20025974,0.00019003,2]
[367833336,1750939855666,-1000.0,0.00019078,2]
[367833337,1750939855677,-1502.78026123,0.00019084,2]
[367833338,1750939855689,-1500.0,0.00019084,2]
[367833339,1750939855701,-1500.0,0.00019084,2]
[367833340,1750939855712,-1500.0,0.00019086,2]
[367833341,1750939855723,-460.0,0.00019177,2]
[367833342,1750939855734,-3443.2,0.00019177,2]
[367833343,1750939855745,-460.0,0.00019177,2]
[367833344,1750939855756,-460.0,0.00019177,2]
[367833345,1750939855767,-550.51,0.00019178,2]
[367833346,1750939855777,-460.0,0.00019178,2]
[367833347,1750939855788,-537.32,0.00019178,2]
[367833348,1750939855798,-460.0,0.00019178,2]
[367833349,1750939855809,-460.0,0.00019178,2]
[367833350,1750939855820,-488.95,0.00019178,2]
[367833351,1750939855831,-460.0,0.00019178,2]
[367833352,1750939855841,-460.0,0.00019178,2]
[367833353,1750939855852,-460.0,0.00019178,2]
[367833354,1750939855863,-460.0,0.00019178,2]
[367833355,1750939855874,-559.8,0.00019178,2]
[367833356,1750939855885,-460.0,0.00019178,2]
[367833357,1750939855896,-460.0,0.00019178,2]
[367833358,1750939855906,-460.0,0.00019178,2]
[367833359,1750939855917,-460.0,0.00019178,2]
[367833360,1750939855928,-460.0,0.00019178,2]
[367833361,1750939855938,-454.48104822,0.00019178,2]
[367833362,1750939855950,-985.93,0.00019178,2]
[367833363,1750939855961,-460.0,0.00019178,2]
[367833364,1750939855971,-460.0,0.00019178,2]
[367833365,1750939855982,-460.0,0.00019178,2]
[367833366,1750939855993,-3899.1,0.00019178,2]
[367833367,1750939856003,-550.62,0.00019178,2]
[367833368,1750939856014,-1393.74,0.00019178,2]
[367833369,1750939856024,-529.46,0.00019178,2]
[367833370,1750939856036,-460.0,0.00019178,2]
[367833371,1750939856047,-667.0,0.00019178,2]
[367833372,1750939856058,-497.91,0.00019178,2]
[367833373,1750939856069,-2163.95,0.00019178,2]
[367833374,1750939856080,-2411.78,0.00019178,2]
[367833375,1750939856091,-460.0,0.00019178,2]
[367833376,1750939856102,-460.0,0.00019178,2]
[367833377,1750939856113,-498.03,0.00019178,2]
[367833378,1750939856123,-658.65,0.00019178,2]
[367833379,1750939856134,-621.12,0.00019178,2]
[367833380,1750939856144,-686.0,0.00019178,2]
[367833381,1750939856155,-1079.19,0.00019178,2]
[367833382,1750939856166,-460.0,0.00019178,2]
[367833383,1750939856177,-573.8,0.00019178,2]
[367833384,1750939856189,-1517.82,0.00019178,2]
[367833385,1750939856200,-515.04,0.00019178,2]
[367833386,1750939856211,-597.73,0.00019178,2]
[367833387,1750939856221,-460.0,0.00019178,2]
[367833388,1750939856232,-858.99,0.00019178,2]
[367833389,1750939856243,-547.52,0.00019178,2]
[367833390,1750939856254,-1475.91,0.00019178,2]
[367833391,1750939856264,-2648.38,0.00019178,2]
[367833392,1750939856275,-667.42,0.00019178,2]
[367833393,1750939856286,-838.14,0.00019178,2]
[367833394,1750939856297,-3198.69,0.00019178,2]
[367833395,1750939856308,-486.06,0.00019178,2]
[367833396,1750939856319,-574.15,0.00019178,2]
[367833397,1750939856330,-460.0,0.00019178,2]
[367833398,1750939856341,-690.59,0.00019178,2]
[367833399,1750939856354,-1708.91,0.00019178,2]
[367833400,1750939856364,-589.76,0.00019178,2]
[367833401,1750939856375,-1679.98,0.00019178,2]
[367833402,1750939856386,-1152.16,0.00019178,2]
[367833403,1750939856397,-460.0,0.00019178,2]
[367833404,1750939856407,-460.0,0.00019178,2]
[367833405,1750939856418,-1518.28,0.00019178,2]
[367833406,1750939856430,-460.0,0.00019178,2]
[367833407,1750939856441,-743.79,0.00019178,2]
[367833408,1750939856453,-483.71,0.00019178,2]
[367833409,1750939856464,-460.0,0.00019178,2]
[367833410,1750939856475,-540.44,0.00019178,2]
[367833411,1750939856487,-1228.47,0.00019178,2]
[367833412,1750939856498,-665.65,0.00019178,2]
[367833413,1750939856509,-460.0,0.00019178,2]
[367833414,1750939856520,-462.04,0.00019178,2]
[367833415,1750939856531,-582.37,0.00019178,2]
[367833416,1750939856543,-1888.28,0.00019178,2]
[367833417,1750939856554,-460.0,0.00019178,2]
[367833418,1750939856565,-460.0,0.00019178,2]
[367833419,1750939856579,-471.22,0.00019178,2]
[367833420,1750939856590,-517.13,0.00019178,2]
[367833421,1750939856602,-1623.0,0.00019178,2]
[367833422,1750939856615,-460.0,0.00019178,2]
[367833423,1750939856626,-1190.2,0.00019178,2]
[367833424,1750939856637,-2144.69,0.00019178,2]
[367833425,1750939856647,-782.22,0.00019178,2]
[367833426,1750939856660,-460.0,0.00019178,2]
[367833427,1750939856672,-460.0,0.00019178,2]
[367833428,1750939856682,-460.0,0.00019178,2]
[367833429,1750939856693,-490.8,0.00019178,2]
[367833430,1750939856706,-460.0,0.00019178,2]
[367833431,1750939856717,-460.0,0.00019178,2]
[367833432,1750939856730,-498.67404336,0.00019178,2]
[367833433,1750939856741,-500.0,0.00019178,2]
[367833434,1750939856752,-385.554908,0.00019178,2]
[367833435,1750939856763,-29022.9130628,0.00019178,2]
[367833436,1750939856774,-151.0,0.000192,2]
[367833437,1750939856785,-1500.0,0.00019231,2]
[367833438,1750939856798,-501.7024217,0.00019272,2]
[367833439,1750939856809,-2550.20025974,0.00019279,2]
[367833440,1750939856820,-500.0,0.00019301,2]
[367833441,1750939856830,-1004.70859062,0.00019367,2]
[367833442,1750939856841,-25000.0,0.00019437,2]
[367833443,1750939857040,-154.30026337,0.00019437,2]
[367833444,1750939857063,-207.4,0.00019437,2]
[367833445,1750939857073,-23656.00863629,0.00019437,2]
[367833446,1750939857082,-500.0,0.00019437,2]
[367833447,1750939857092,-151.0,0.00019437,2]
[367833448,1750939857102,-500.0,0.00019437,2]
[367833449,1750939857112,-151.0,0.00019437,2]
[367833450,1750939857122,-151.0,0.00019437,2]
[367833451,1750939857131,-5000.0,0.00019437,2]
[367833452,1750939857141,-151.0,0.00019437,2]
[367833453,1750939857150,-151.0,0.00019437,2]
[367833454,1750939857159,-151.0,0.00019437,2]
[367833455,1750939857168,-151.0,0.00019437,2]
[367833456,1750939857178,-151.0,0.00019437,2]
[367833457,1750939857187,-151.0,0.00019437,2]
[367833458,1750939857196,-500.0,0.00019437,2]
[367833459,1750939857206,-151.0,0.00019437,2]
[367833460,1750939857216,-151.0,0.00019437,2]
[367833461,1750939857226,-151.0,0.00019437,2]
[367833462,1750939857235,-151.0,0.00019437,2]
[367833463,1750939857245,-500.0,0.00019437,2]
[367833464,1750939857254,-151.0,0.00019437,2]
[367833465,1750939857263,-151.0,0.00019437,2]
[367833466,1750939857273,-388.0,0.00019437,2]
[367833467,1750939857282,-1880.25511664,0.00019437,2]
[367833468,1750939857291,-151.0,0.00019437,2]
[367833469,1750939857300,-500.0,0.00019437,2]
[367833470,1750939857310,-500.0,0.00019437,2]
[367833471,1750939857319,-151.0,0.00019437,2]
[367833472,1750939857329,-151.0,0.00019437,2]
[367833473,1750939857341,-151.0,0.00019437,2]
[367833474,1750939857351,-500.0,0.00019437,2]
[367833475,1750939857361,-500.0,0.00019437,2]
[367833476,1750939857371,-169.74990888,0.00019437,2]
[367833477,1750939857381,-151.0,0.00019437,2]
[367833478,1750939857391,-151.0,0.00019437,2]
[367833479,1750939857402,-500.0,0.00019437,2]
[367833480,1750939857412,-500.0,0.00019437,2]
[367833481,1750939857422,-151.0,0.00019437,2]
[367833482,1750939857432,-500.0,0.00019437,2]
[367833483,1750939857442,-151.0,0.00019437,2]
[367833484,1750939857451,-500.0,0.00019437,2]
[367833485,1750939857460,-151.0,0.00019437,2]
[367833486,1750939857469,-500.0,0.00019437,2]
[367833487,1750939857479,-500.0,0.00019437,2]
[367833488,1750939857489,-151.0,0.00019437,2]
[367833489,1750939857501,-151.0,0.00019437,2]
[367833490,1750939857511,-500.0,0.00019437,2]
[367833491,1750939857521,-151.0,0.00019437,2]
[367833492,1750939857530,-151.0,0.00019437,2]
[367833493,1750939857540,-500.0,0.00019437,2]
[367833494,1750939857549,-500.0,0.00019437,2]
[367833495,1750939857558,-151.0,0.00019437,2]
[367833496,1750939857568,-151.0,0.00019437,2]
[367833497,1750939857580,-500.0,0.00019437,2]
[367833498,1750939857590,-151.0,0.00019437,2]
[367833499,1750939857599,-151.27597907,0.00019437,2]
[367833500,1750939857608,-244.50989766,0.00019437,2]
[367833501,1750939857618,-500.0,0.00019437,2]
[367833502,1750939857627,-500.0,0.00019437,2]
[367833503,1750939857634,-151.0,0.00019437,2]
[367833504,1750939857645,-500.0,0.00019437,2]
[367833505,1750939857655,-500.0,0.00019437,2]
[367833506,1750939857665,-500.0,0.00019437,2]
[367833507,1750939857676,-500.0,0.00019437,2]
[367833508,1750939857685,-219.65880211,0.00019437,2]
[367833509,1750939857693,-500.0,0.00019437,2]
[367833510,1750939857704,-500.0,0.00019437,2]
[367833511,1750939857714,-500.0,0.00019437,2]
[367833512,1750939857723,-500.0,0.00019437,2]
[367833513,1750939857732,-500.0,0.00019437,2]
[367833514,1750939857743,-500.0,0.00019437,2]
[367833515,1750939857753,-500.0,0.00019437,2]
[367833516,1750939857762,-500.0,0.00019437,2]
[367833517,1750939857771,-500.0,0.00019437,2]
[367833518,1750939857780,-500.0,0.00019437,2]
[367833519,1750939857790,-500.0,0.00019437,2]
[367833520,1750939857799,-500.0,0.00019437,2]
[367833521,1750939857809,-500.0,0.00019437,2]
[367833522,1750939857818,-500.0,0.00019437,2]
[367833523,1750939857828,-500.0,0.00019437,2]
[367833524,1750939857837,-500.0,0.00019437,2]
[367833525,1750939857847,-500.0,0.00019437,2]
[367833526,1750939857856,-500.0,0.00019437,2]
[367833527,1750939857865,-500.0,0.00019437,2]
[367833528,1750939857874,-500.0,0.00019437,2]
[367833529,1750939857883,-800.0,0.00019437,2]
[367833530,1750939857892,-500.0,0.00019437,2]
[367833531,1750939857902,-800.0,0.00019437,2]
[367833532,1750939857911,-500.0,0.00019437,2]
[367833533,1750939857921,-800.0,0.00019437,2]
[367833534,1750939857930,-193.91835657,0.00019437,2]
[367833535,1750939857940,-800.0,0.00019437,2]
[367833536,1750939857949,-800.0,0.00019437,2]
[367833537,1750939857958,-800.0,0.00019437,2]
[367833538,1750939857968,-800.0,0.00019437,2]
[367833539,1750939857977,-500.0,0.00019439,2]
[367833540,1750939857986,-500.0,0.00019439,2]
[367833541,1750939857995,-399.66928241,0.00019439,2]
[367833542,1750939858004,-500.0,0.00019439,2]
[367833543,1750939858014,-393.9456505,0.00019439,2]
[367833544,1750939858023,-500.0,0.00019439,2]
[367833545,1750939858032,-500.0,0.00019439,2]
[367833546,1750939858041,-460.0,0.00019451,2]
[367833547,1750939858050,-3443.2,0.00019451,2]
[367833548,1750939858060,-460.0,0.00019451,2]
[367833549,1750939858069,-460.0,0.00019451,2]
[367833550,1750939858078,-550.51,0.00019452,2]
[367833551,1750939858087,-460.0,0.00019452,2]
[367833552,1750939858097,-537.32,0.00019452,2]
[367833553,1750939858106,-460.0,0.00019452,2]
[367833554,1750939858115,-460.0,0.00019452,2]
[367833555,1750939858124,-488.95,0.00019452,2]
[367833556,1750939858133,-460.0,0.00019452,2]
[367833557,1750939858143,-460.0,0.00019452,2]
[367833558,1750939858152,-460.0,0.00019452,2]
[367833559,1750939858161,-460.0,0.00019452,2]
[367833560,1750939858170,-559.8,0.00019452,2]
[367833561,1750939858178,-460.0,0.00019452,2]
[367833562,1750939858188,-460.0,0.00019452,2]
[367833563,1750939858199,-460.0,0.00019452,2]
[367833564,1750939858208,-460.0,0.00019452,2]
[367833565,1750939858217,-460.0,0.00019452,2]
[367833566,1750939858226,-985.93,0.00019452,2]
[367833567,1750939858235,-212.36,0.00019452,2]
[367833568,1750939858244,-460.0,0.00019452,2]
[367833569,1750939858254,-460.0,0.00019452,2]
[367833570,1750939858263,-3899.1,0.00019452,2]
[367833571,1750939858272,-550.62,0.00019452,2]
[367833572,1750939858281,-1393.74,0.00019452,2]
[367833573,1750939858290,-529.46,0.00019452,2]
[367833574,1750939858299,-460.0,0.00019452,2]
[367833575,1750939858309,-667.0,0.00019452,2]
[367833576,1750939858319,-497.91,0.00019452,2]
[367833577,1750939858330,-2163.95,0.00019452,2]
[367833578,1750939858339,-2411.78,0.00019452,2]
[367833579,1750939858348,-460.0,0.00019452,2]
[367833580,1750939858357,-460.0,0.00019452,2]
[367833581,1750939858367,-498.03,0.00019452,2]
[367833582,1750939858376,-658.65,0.00019452,2]
[367833583,1750939858385,-621.12,0.00019452,2]
[367833584,1750939858395,-686.0,0.00019452,2]
[367833585,1750939858403,-1079.19,0.00019452,2]
[367833586,1750939858412,-460.0,0.00019452,2]
[367833587,1750939858422,-573.8,0.00019452,2]
[367833588,1750939858431,-1517.82,0.00019452,2]
[367833589,1750939858440,-515.04,0.00019452,2]
[367833590,1750939858450,-597.73,0.00019452,2]
[367833591,1750939858458,-460.0,0.00019452,2]
[367833592,1750939858468,-858.99,0.00019452,2]
[367833593,1750939858477,-547.52,0.00019452,2]
[367833594,1750939858486,-1475.91,0.00019452,2]
[367833595,1750939858496,-2648.38,0.00019452,2]
[367833596,1750939858505,-838.14,0.00019452,2]
[367833597,1750939858515,-667.42,0.00019452,2]
[367833598,1750939858524,-3198.69,0.00019452,2]
[367833599,1750939858533,-486.06,0.00019452,2]
[367833600,1750939858542,-574.15,0.00019452,2]
[367833601,1750939858551,-460.0,0.00019452,2]
[367833602,1750939858560,-690.59,0.00019452,2]
[367833603,1750939858569,-1708.91,0.00019452,2]
[367833604,1750939858583,-589.76,0.00019452,2]
[367833605,1750939858592,-1679.98,0.00019452,2]
[367833606,1750939858602,-1152.16,0.00019452,2]
[367833607,1750939858611,-460.0,0.00019452,2]
[367833608,1750939858622,-460.0,0.00019452,2]
[367833609,1750939858631,-1518.28,0.00019452,2]
[367833610,1750939858640,-460.0,0.00019452,2]
[367833611,1750939858649,-743.79,0.00019452,2]
[367833612,1750939858662,-483.71,0.00019452,2]
[367833613,1750939858672,-460.0,0.00019452,2]
[367833614,1750939858682,-540.44,0.00019452,2]
[367833615,1750939858694,-1228.47,0.00019452,2]
[367833616,1750939858704,-665.65,0.00019452,2]
[367833617,1750939858713,-460.0,0.00019452,2]
[367833618,1750939858722,-462.04,0.00019452,2]
[367833619,1750939858732,-582.37,0.00019452,2]
[367833620,1750939858743,-1888.28,0.00019452,2]
[367833621,1750939858754,-460.0,0.00019452,2]
[367833622,1750939858766,-460.0,0.00019452,2]
[367833623,1750939858777,-471.22,0.00019452,2]
[367833624,1750939858788,-517.13,0.00019452,2]
[367833625,1750939858798,-1623.0,0.00019452,2]
[367833626,1750939858807,-460.0,0.00019452,2]
[367833627,1750939858818,-1190.2,0.00019452,2]
[367833628,1750939858829,-2144.69,0.00019452,2]
[367833629,1750939858840,-782.22,0.00019452,2]
[367833630,1750939858850,-460.0,0.00019452,2]
[367833631,1750939858860,-169.97346394,0.00019452,2]
[367833632,1750939858871,-460.0,0.00019452,2]
[367833633,1750939858880,-460.0,0.00019452,2]
[367833634,1750939858890,-490.8,0.00019452,2]
[367833635,1750939858899,-402.356,0.00019492,2]
[367833636,1750939858908,-151.0,0.000195,2]
[367833637,1750939858917,-2000.0,0.00019517,2]
[367833638,1750939858927,-627.19226716,0.00019517,2]
[367833639,1750939858937,-417.243172,0.00019547,2]
[367833640,1750939858947,-2550.20025974,0.00019555,2]
[367833641,1750939858957,-406.0,0.00019596,2]
[367833642,1750939858967,-432.68116936,0.00019602,2]
[367833643,1750939858976,-587.0,0.00019631,2]
[367833644,1750939858987,-2000.0,0.00019632,2]
[367833645,1750939858997,-1011.32697788,0.00019632,2]
[367833646,1750939859007,-238.172328,0.00019634,2]
[367833647,1750939859017,-448.69037263,0.00019657,2]
[367833648,1750939859027,-366.0585355,0.00019699,2]
[367833649,1750939859036,-465.29191642,0.00019712,2]
[367833650,1750939859046,-460.0,0.00019725,2]
[367833651,1750939859056,-3443.2,0.00019725,2]
[367833652,1750939859066,-460.0,0.00019725,2]
[367833653,1750939859076,-460.0,0.00019725,2]
[367833654,1750939859085,-550.51,0.00019726,2]
[367833655,1750939859095,-460.0,0.00019726,2]
[367833656,1750939859104,-537.32,0.00019726,2]
[367833657,1750939859115,-460.0,0.00019726,2]
[367833658,1750939859124,-472.30584246,0.00019726,2]
[367833659,1750939859133,-488.95,0.00019726,2]
[367833660,1750939859142,-460.0,0.00019726,2]
[367833661,1750939859151,-460.0,0.00019726,2]
[367833662,1750939859160,-460.0,0.00019726,2]
[367833663,1750939859169,-460.0,0.00019726,2]
[367833664,1750939859178,-559.8,0.00019726,2]
[367833665,1750939859188,-460.0,0.00019726,2]
[367833666,1750939859198,-460.0,0.00019726,2]
[367833667,1750939859209,-460.0,0.00019726,2]
[367833668,1750939859218,-571.24543167,0.00019726,2]
[367833669,1750939859227,-460.0,0.00019726,2]
[367833670,1750939859237,-985.93,0.00019726,2]
[367833671,1750939859246,-599.63577361,0.00019726,2]
[367833672,1750939859255,-460.0,0.00019726,2]
[367833673,1750939859264,-3899.1,0.00019726,2]
[367833674,1750939859273,-550.62,0.00019726,2]
[367833675,1750939859283,-1393.74,0.00019726,2]
[367833676,1750939859292,-529.46,0.00019726,2]
[367833677,1750939859301,-460.0,0.00019726,2]
[367833678,1750939859310,-667.0,0.00019726,2]
[367833679,1750939859320,-497.91,0.00019726,2]
[367833680,1750939859329,-2163.95,0.00019726,2]
[367833681,1750939859338,-2411.78,0.00019726,2]
[367833682,1750939859347,-460.0,0.00019726,2]
[367833683,1750939859356,-460.0,0.00019726,2]
[367833684,1750939859367,-498.03,0.00019726,2]
[367833685,1750939859379,-658.65,0.00019726,2]
[367833686,1750939859389,-621.12,0.00019726,2]
[367833687,1750939859400,-686.0,0.00019726,2]
[367833688,1750939859410,-1079.19,0.00019726,2]
[367833689,1750939859421,-460.0,0.00019726,2]
[367833690,1750939859431,-573.8,0.00019726,2]
[367833691,1750939859440,-1517.82,0.00019726,2]
[367833692,1750939859450,-515.04,0.00019726,2]
[367833693,1750939859460,-597.73,0.00019726,2]
[367833694,1750939859469,-460.0,0.00019726,2]
[367833695,1750939859478,-858.99,0.00019726,2]
[367833696,1750939859487,-547.52,0.00019726,2]
[367833697,1750939859497,-1475.91,0.00019726,2]
[367833698,1750939859506,-2648.38,0.00019726,2]
[367833699,1750939859516,-838.14,0.00019726,2]
[367833700,1750939859526,-667.42,0.00019726,2]
[367833701,1750939859535,-3198.69,0.00019726,2]
[367833702,1750939859545,-486.06,0.00019726,2]
[367833703,1750939859555,-574.15,0.00019726,2]
[367833704,1750939859564,-460.0,0.00019726,2]
[367833705,1750939859577,-690.59,0.00019726,2]
[367833706,1750939859586,-1708.91,0.00019726,2]
[367833707,1750939859596,-589.76,0.00019726,2]
[367833708,1750939859605,-1679.98,0.00019726,2]
[367833709,1750939859616,-1152.16,0.00019726,2]
[367833710,1750939859626,-460.0,0.00019726,2]
[367833711,1750939859635,-1518.28,0.00019726,2]
[367833712,1750939859646,-460.0,0.00019726,2]
[367833713,1750939859655,-743.79,0.00019726,2]
[367833714,1750939859665,-483.71,0.00019726,2]
[367833715,1750939859674,-460.0,0.00019726,2]
[367833716,1750939859684,-540.44,0.00019726,2]
[367833717,1750939859694,-1228.47,0.00019726,2]
[367833718,1750939859703,-665.65,0.00019726,2]
[367833719,1750939859713,-460.0,0.00019726,2]
[367833720,1750939859723,-462.04,0.00019726,2]
[367833721,1750939859732,-582.37,0.00019726,2]
[367833722,1750939859742,-1888.28,0.00019726,2]
[367833723,1750939859751,-460.0,0.00019726,2]
[367833724,1750939859760,-460.0,0.00019726,2]
[367833725,1750939859770,-471.22,0.00019726,2]
[367833726,1750939859780,-517.13,0.00019726,2]
[367833727,1750939859790,-1623.0,0.00019726,2]
[367833728,1750939859799,-460.0,0.00019726,2]
[367833729,1750939859808,-1190.2,0.00019726,2]
[367833730,1750939859818,-2144.69,0.00019726,2]
[367833731,1750939859829,-782.22,0.00019726,2]
[367833732,1750939859840,-460.0,0.00019726,2]
[367833733,1750939859851,-460.0,0.00019726,2]
[367833734,1750939859862,-460.0,0.00019726,2]
[367833735,1750939859872,-490.8,0.00019726,2]
[367833736,1750939859883,-482.50771733,0.00019767,2]
[367833737,1750939859892,-2000.0,0.00019779,2]
[367833738,1750939859902,-500.36050287,0.00019822,2]
[367833739,1750939859911,-2550.20025974,0.00019831,2]
[367833740,1750939859921,-518.87384147,0.00019877,2]
[367833741,1750939859931,-966.0,0.000199,2]
[367833742,1750939859940,-2161.0,0.000199,2]
[367833743,1750939859950,-654.0,0.000199,2]
[367833744,1750939859959,-538.07217361,0.00019932,2]
[367833745,1750939859968,-25000.0,0.00019985,2]
[367833746,1750939859979,-5000.0,0.00019985,2]
[367833747,1750939859988,-460.0,0.00019999,2]
[367833748,1750939859998,-3443.2,0.00019999,2]
[367833749,1750939860007,-460.0,0.00019999,2]
[367833750,1750939860017,-370.80919601,0.00019999,2]
[367833751,1750939860027,-550.51,0.0002,2]
[367833752,1750939860036,-460.0,0.0002,2]
[367833753,1750939860046,-537.32,0.0002,2]
[367833754,1750939860056,-460.0,0.0002,2]
[367833755,1750939860066,-488.95,0.0002,2]
[367833756,1750939860076,-460.0,0.0002,2]
[367833757,1750939860085,-460.0,0.0002,2]
[367833758,1750939860095,-460.0,0.0002,2]
[367833759,1750939860104,-460.0,0.0002,2]
[367833760,1750939860113,-559.8,0.0002,2]
[367833761,1750939860123,-460.0,0.0002,2]
[367833762,1750939860133,-460.0,0.0002,2]
[367833763,1750939860143,-460.0,0.0002,2]
[367833764,1750939860152,-460.0,0.0002,2]
[367833765,1750939860162,-985.93,0.0002,2]
[367833766,1750939860174,-460.0,0.0002,2]
[367833767,1750939860183,-3899.1,0.0002,2]
[367833768,1750939860192,-550.62,0.0002,2]
[367833769,1750939860202,-1393.74,0.0002,2]
[367833770,1750939860212,-529.46,0.0002,2]
[367833771,1750939860368,-460.0,0.0002,2]
[367833772,1750939860382,-667.0,0.0002,2]
[367833773,1750939860392,-497.91,0.0002,2]
[367833774,1750939860402,-2163.95,0.0002,2]
[367833775,1750939860412,-2411.78,0.0002,2]
[367833776,1750939860422,-460.0,0.0002,2]
[367833777,1750939860432,-460.0,0.0002,2]
[367833778,1750939860442,-498.03,0.0002,2]
[367833779,1750939860454,-658.65,0.0002,2]
[367833780,1750939860464,-621.12,0.0002,2]
[367833781,1750939860474,-686.0,0.0002,2]
[367833782,1750939860483,-1079.19,0.0002,2]
[367833783,1750939860494,-460.0,0.0002,2]
[367833784,1750939860504,-160.0,0.0002,3]
[367833785,1750939860514,-573.8,0.0002,2]
[367833786,1750939860524,-1517.82,0.0002,2]
[367833787,1750939860534,-515.04,0.0002,2]
[367833788,1750939860543,-597.73,0.0002,2]
[367833789,1750939860553,-515.47342929,0.0002,2]
[367833790,1750939860564,-858.99,0.0002,2]
[367833791,1750939860576,-547.52,0.0002,2]
[367833792,1750939860587,-1475.91,0.0002,2]
[367833793,1750939860597,-2648.38,0.0002,2]
[367833794,1750939860607,-838.14,0.0002,2]
[367833795,1750939860618,-667.42,0.0002,2]
[367833796,1750939860628,-3198.69,0.0002,2]
[367833797,1750939860639,-486.06,0.0002,2]
[367833798,1750939860649,-574.15,0.0002,2]
[367833799,1750939860659,-460.0,0.0002,2]
[367833800,1750939860670,-690.59,0.0002,2]
[367833801,1750939860680,-1708.91,0.0002,2]
[367833802,1750939860691,-589.76,0.0002,2]
[367833803,1750939860700,-1679.98,0.0002,2]
[367833804,1750939860715,-1152.16,0.0002,2]
[367833805,1750939860725,-460.0,0.0002,2]
[367833806,1750939860735,-1518.28,0.0002,2]
[367833807,1750939860745,-460.0,0.0002,2]
[367833808,1750939860755,-743.79,0.0002,2]
[367833809,1750939860765,-483.71,0.0002,2]
[367833810,1750939860775,-460.0,0.0002,2]
[367833811,1750939860784,-540.44,0.0002,2]
[367833812,1750939860794,-1228.47,0.0002,2]
[367833813,1750939860803,-665.65,0.0002,2]
[367833814,1750939860814,-460.0,0.0002,2]